[Event "RUS-ch Women Blitz 2019"]
[Site "Sochi"]
[Date "2019.10.20"]
[Round "6.6"]
[White "Sudakova, Irina"]
[Black "But, Svetlana"]
[Result "0-1"]
[ECO "C00"]
[WhiteElo "2184"]
[BlackElo "1947"]
[Annotator "NA"]
[PlyCount "170"]
[EventDate "2019.10.17"]
[EventType "swiss"]
[EventCountry "RUS"]
[SourceTitle "playchess.com"]
[Source "ChessBase"]
[SourceQuality "1"]
[TimeControl "180+2"]

1. e4 {[%emt 0:00:00]} e6 {[%emt 0:00:00]} 2. d4 {[%emt 0:00:02]} d5 {[%emt 0:00:00]} 3. Bd3 {[%emt 0:00:00]} dxe4 {[%emt 0:00:00]} 4. Bxe4 {[%emt 0:00:01]} Nf6 {[%emt 0:00:02]} 5. Bf3 {[%emt 0:00:01]} Nbd7 {[%emt 0:00:03]} 6. Ne2 {[%emt 0:00:04]} c5 {[%emt 0:00:13]} 7. O-O {[%emt 0:00:24]} cxd4 {[%emt 0:00:03]} 8. Nxd4 {[%emt 0:00:01]} Bc5 {[%emt 0:00:03]} 9. Nb3 {[%emt 0:00:04]} Be7 {[%emt 0:00:11]} 10. Be3 {[%emt 0:00:16]} O-O {[%emt 0:00:04]} 11. c4 {[%emt 0:00:03]} Qc7 {[%emt 0:00:05]} 12. N1d2 {[%emt 0:00:25]} Nc5 {[%emt 0:00:17]} 13. Rc1 {[%emt 0:00:11]} Nxb3 {[%emt 0:00:02]} 14. Qxb3 {[%emt 0:00:11]} h6 {[%emt 0:00:16]} 15. c5 {[%emt 0:00:14]} Nd5 {[%emt 0:00:14]} 16. Bxd5 {[%emt 0:00:18]} exd5 {[%emt 0:00:01]} 17. Qxd5 {[%emt 0:00:01]} Be6 {[%emt 0:00:01]} 18. Qe4 {[%emt 0:00:06]} Bf6 {[%emt 0:00:06]} 19. b4 {[%emt 0:00:05]} Bxa2 {[%emt 0:00:06]} 20. Nc4 {[%emt 0:00:26]} Bxc4 {[%emt 0:00:03]} 21. Rxc4 {[%emt 0:00:06]} a6 {[%emt 0:00:14]} 22. Qf5 {[%emt 0:00:15]} Qe5 {[%emt 0:00:10]} 23. Qd7 {[%emt 0:00:10]} Qe7 {[%emt 0:00:02]} 24. Qg4 {[%emt 0:00:05]} Kh8 {[%emt 0:00:08]} 25. Bf4 {[%emt 0:00:06]} Rfe8 {[%emt 0:00:04]} 26. Bd6 {[%emt 0:00:02]} Qe2 {[%emt 0:00:03]} 27. h3 {[%emt 0:00:04]} Qxg4 {[%emt 0:00:02]} 28. Rxg4 {[%emt 0:00:03]} Re2 {[%emt 0:00:03]} 29. Rd1 {[%emt 0:00:05]} Rae8 {[%emt 0:00:01]} 30. Bg3 {[%emt 0:00:03]} Re1+ {[%emt 0:00:02]} 31. Rxe1 {[%emt 0:00:00]} Rxe1+ {[%emt 0:00:00]} 32. Kh2 {[%emt 0:00:01]} Re6 {[%emt 0:00:07]} 33. Rc4 {[%emt 0:00:04]} Rc6 {[%emt 0:00:01]} 34. Re4 {[%emt 0:00:01]} Kh7 {[%emt 0:00:01]} 35. Re8 {[%emt 0:00:02]} b6 {[%emt 0:00:04]} 36. Bd6 {[%emt 0:00:01]} bxc5 {[%emt 0:00:02]} 37. bxc5 {[%emt 0:00:00]} a5 {[%emt 0:00:01]} 38. Ra8 {[%emt 0:00:01]} Bc3 {[%emt 0:00:00]} 39. Kg3 {[%emt 0:00:02]} Kg6 {[%emt 0:00:02]} 40. Kf3 {[%emt 0:00:01]} Bb4 {[%emt 0:00:03]} 41. Ke4 {[%emt 0:00:05]} Bxc5 {[%emt 0:00:01]} 42. Kd5 {[%emt 0:00:04]} Rxd6+ {[%emt 0:00:01]} 43. Kxc5 {[%emt 0:00:00]} Rd2 {[%emt 0:00:01]} 44. Ra6+ {[%emt 0:00:04]} f6 {[%emt 0:00:01]} 45. Rxa5 {[%emt 0:00:03]} Rxf2 {[%emt 0:00:00]} 46. g4 {[%emt 0:00:01]} Rf3 {[%emt 0:00:05]} 47. h4 {[%emt 0:00:01]} Rf4 {[%emt 0:00:05]} 48. Kd6 {[%emt 0:00:04]} Rxg4 49. h5+ Kh7 {[%emt 0:00:06]} 50. Ke6 {[%emt 0:00:04]} Rg5 {[%emt 0:00:00]} 51. Ra7 {[%emt 0:00:02]} Rxh5 {[%emt 0:00:01]} 52. Kf7 {[%emt 0:00:00]} Rc5 {[%emt 0:00:05]} 53. Kf8 {[%emt 0:00:01]} Rc8+ {[%emt 0:00:02]} 54. Kf7 h5 55. Ra5 {[%emt 0:00:03]} Kh6 {[%emt 0:00:02]} 56. Ra2 {[%emt 0:00:02]} h4 {[%emt 0:00:01]} 57. Rg2 {[%emt 0:00:03]} Rc7+ {[%emt 0:00:02]} 58. Ke6 {[%emt 0:00:01]} Kh5 {[%emt 0:00:15]} 59. Kf5 {[%emt 0:00:05]} Rc5+ {[%emt 0:00:01]} 60. Kf4 {[%emt 0:00:01]} Rg5 {[%emt 0:00:00]} 61. Rh2 {[%emt 0:00:02]} Rg1 {[%emt 0:00:02]} 62. Kf3 {[%emt 0:00:01]} g5 {[%emt 0:00:00]} 63. Ra2 {[%emt 0:00:01]} g4+ {[%emt 0:00:01]} 64. Kf2 {[%emt 0:00:01]} Rb1 {[%emt 0:00:03]} 65. Ra5+ {[%emt 0:00:01]} Kg6 {[%emt 0:00:01]} 66. Ra4 {[%emt 0:00:02]} Kg5 {[%emt 0:00:01]} 67. Ra5+ {[%emt 0:00:02]} f5 {[%emt 0:00:00]} 68. Ra8 {[%emt 0:00:01]} h3 {[%emt 0:00:01]} 69. Kg3 {[%emt 0:00:03]} Rb3+ 70. Kh2 Re3 {[%emt 0:00:05]} 71. Ra4 {[%emt 0:00:03]} Re4 {[%emt 0:00:01]} 72. Ra5 {[%emt 0:00:01]} Kf4 {[%emt 0:00:00]} 73. Ra3 {[%emt 0:00:01]} Re2+ {[%emt 0:00:01]} 74. Kh1 {[%emt 0:00:01]} g3 {[%emt 0:00:02]} 75. Ra4+ {[%emt 0:00:01]} Re4 {[%emt 0:00:01]} 76. Ra1 {[%emt 0:00:01]} Kg4 {[%emt 0:00:02]} 77. Rb1 {[%emt 0:00:01]} f4 {[%emt 0:00:06]} 78. Ra1 {[%emt 0:00:01]} Re3 {[%emt 0:00:05]} 79. Kg1 {[%emt 0:00:02]} f3 {[%emt 0:00:04]} 80. Ra4+ {[%emt 0:00:01]} Kf5 {[%emt 0:00:01]} 81. Ra5+ {[%emt 0:00:00]} Kf4 {[%emt 0:00:01]} 82. Ra4+ {[%emt 0:00:01]} Re4 {[%emt 0:00:00]} 83. Ra1 {[%emt 0:00:01]} f2+ {[%emt 0:00:03]} 84. Kf1 {[%emt 0:00:02]} Re1+ {[%emt 0:00:01]} 85. Rxe1 {[%emt 0:00:01]} fxe1=Q+ {[%emt 0:00:01]} 0-1

[Event "RUS-ch Women Blitz 2019"]
[Site "Sochi"]
[Date "2019.10.20"]
[Round "6.8"]
[White "Usacheva, Glafira"]
[Black "Ponomarenko, Valeria"]
[Result "1-0"]
[ECO "A65"]
[WhiteElo "1796"]
[BlackElo "1344"]
[Annotator "NA"]
[PlyCount "117"]
[EventDate "2019.10.17"]
[EventType "swiss"]
[EventCountry "RUS"]
[SourceTitle "playchess.com"]
[Source "ChessBase"]
[SourceQuality "1"]
[TimeControl "180+2"]

1. d4 c5 2. d5 e6 3. c4 exd5 4. cxd5 d6 5. Nc3 Nf6 6. e4 a6 7. a4 g6 8. f4 Bg7 9. Nf3 Bg4 10. Be2 O-O 11. O-O {[%emt 0:00:13]} Re8 {[%emt 0:00:18]} 12. h3 {[%emt 0:00:00]} Bxf3 {[%emt 0:00:05]} 13. Bxf3 {[%emt 0:00:01]} Nbd7 {[%emt 0:00:10]} 14. Be3 {[%emt 0:00:17]} Qc7 {[%emt 0:00:17]} 15. Bf2 {[%emt 0:00:03]} c4 {[%emt 0:00:03]} 16. g4 {[%emt 0:00:28]} Nc5 {[%emt 0:00:03]} 17. Re1 {[%emt 0:00:01]} Re7 {[%emt 0:00:28]} 18. g5 {[%emt 0:00:30]} Nfd7 {[%emt 0:00:08]} 19. Bxc5 {[%emt 0:00:19]} Nxc5 {[%emt 0:00:05]} 20. Kg2 {[%emt 0:00:03]} Nd3 {[%emt 0:00:03]} 21. Rf1 {[%emt 0:00:04]} Nxf4+ {[%emt 0:00:06]} 22. Kh2 {[%emt 0:00:01]} Nd3 {[%emt 0:00:06]} 23. Qc2 {[%emt 0:00:08]} Qb6 {[%emt 0:00:13]} 24. Rab1 {[%emt 0:00:07]} Qb3 {[%emt 0:00:15]} 25. Qxb3 {[%emt 0:00:09]} cxb3 {[%emt 0:00:01]} 26. Rfd1 {[%emt 0:00:01]} Nc5 {[%emt 0:00:18]} 27. Re1 {[%emt 0:00:25]} Nd3 {[%emt 0:00:03]} 28. Red1 {[%emt 0:00:02]} Nxb2 {[%emt 0:00:06]} 29. Rxb2 {[%emt 0:00:01]} Bxc3 {[%emt 0:00:01]} 30. Rxb3 {[%emt 0:00:01]} Be5+ {[%emt 0:00:02]} 31. Kg2 {[%emt 0:00:00]} Rc8 {[%emt 0:00:06]} 32. Rd2 {[%emt 0:00:11]} Bf4 {[%emt 0:00:02]} 33. Rdb2 {[%emt 0:00:01]} Bxg5 {[%emt 0:00:10]} 34. Rxb7 {[%emt 0:00:01]} Rxb7 {[%emt 0:00:03]} 35. Rxb7 {[%emt 0:00:01]} Rc4 {[%emt 0:00:05]} 36. a5 {[%emt 0:00:24]} Ra4 {[%emt 0:00:23]} 37. Rb6 {[%emt 0:00:01]} Rxa5 {[%emt 0:00:01]} 38. Rxd6 {[%emt 0:00:04]} Bf4 {[%emt 0:00:04]} 39. Rd8+ {[%emt 0:00:01]} Kg7 {[%emt 0:00:00]} 40. d6 {[%emt 0:00:12]} Ra2+ {[%emt 0:00:03]} 41. Kf1 {[%emt 0:00:00]} Rd2 {[%emt 0:00:02]} 42. d7 {[%emt 0:00:05]} a5 {[%emt 0:00:05]} 43. Bg4 {[%emt 0:00:02]} Bg5 {[%emt 0:00:06]} 44. Ra8 {[%emt 0:00:02]} Rd4 {[%emt 0:00:08]} 45. Rxa5 {[%emt 0:00:05]} Rxe4 {[%emt 0:00:00]} 46. Rxg5 {[%emt 0:00:01]} Rf4+ {[%emt 0:00:04]} 47. Ke2 {[%emt 0:00:04]} Rd4 {[%emt 0:00:01]} 48. Re5 {[%emt 0:00:03]} Kf6 {[%emt 0:00:03]} 49. Re8 {[%emt 0:00:04]} h5 {[%emt 0:00:02]} 50. d8=Q+ {[%emt 0:00:04]} Rxd8 {[%emt 0:00:01]} 51. Rxd8 {[%emt 0:00:01]} hxg4 {[%emt 0:00:01]} 52. hxg4 {[%emt 0:00:01]} Kg5 {[%emt 0:00:00]} 53. Kf3 {[%emt 0:00:00]} Kf6 {[%emt 0:00:07]} 54. Kf4 {[%emt 0:00:03]} Kg7 {[%emt 0:00:01]} 55. g5 {[%emt 0:00:02]} Kh7 {[%emt 0:00:02]} 56. Rd7 {[%emt 0:00:02]} Kg7 {[%emt 0:00:00]} 57. Rc7 {[%emt 0:00:01]} Kf8 {[%emt 0:00:02]} 58. Ke5 {[%emt 0:00:01]} Kg7 {[%emt 0:00:00]} 59. Rb7 {[%emt 0:00:02]} 1-0

[Event "RUS-ch Women Blitz 2019"]
[Site "Sochi"]
[Date "2019.10.17"]
[Round "6.9"]
[White "Styazhkina, Anna"]
[Black "Dumcheva, Julia"]
[Result "1-0"]
[ECO "B12"]
[WhiteElo "2280"]
[BlackElo "2168"]
[Annotator "RC"]
[PlyCount "53"]
[EventDate "2019.10.17"]
[EventType "swiss"]
[EventCountry "RUS"]
[SourceTitle "playchess.com"]
[Source "ChessBase"]
[SourceQuality "1"]
[TimeControl "180+2"]

1. e4 {[%emt 0:00:00]} c6 {[%emt 0:00:08]} 2. d4 {[%emt 0:00:05]} d5 {[%emt 0:00:02]} 3. e5 {[%emt 0:00:19]} Bf5 {[%emt 0:00:04]} 4. h4 {[%emt 0:00:02]} h6 {[%emt 0:00:02]} 5. g4 {[%emt 0:00:16]} Bd7 {[%emt 0:00:01]} 6. Be3 {[%emt 0:00:19]} e6 {[%emt 0:00:04]} 7. f4 {[%emt 0:00:07]} Qb6 {[%emt 0:00:11]} 8. b3 {[%emt 0:00:04]} c5 {[%emt 0:00:04]} 9. c3 {[%emt 0:00:06]} cxd4 {[%emt 0:00:07]} 10. cxd4 {[%emt 0:00:01]} Bb4+ {[%emt 0:00:07]} 11. Kf2 {[%emt 0:00:01]} f6 {[%emt 0:00:21]} 12. Bd3 {[%emt 0:00:11]} fxe5 {[%emt 0:00:05]} 13. Bg6+ {[%emt 0:00:10]} Kd8 {[%emt 0:00:02]} 14. fxe5 Ne7 15. Bd3 {[%emt 0:00:15]} Nbc6 {[%emt 0:00:04]} 16. Nf3 {[%emt 0:00:05]} Rf8 {[%emt 0:00:01]} 17. Kg2 {[%emt 0:00:07]} Nc8 {[%emt 0:00:16]} 18. a3 {[%emt 0:00:06]} Be7 {[%emt 0:00:01]} 19. Nc3 {[%emt 0:00:04]} Rxf3 {[%emt 0:00:13]} 20. Qxf3 {[%emt 0:00:03]} Qxb3 {[%emt 0:00:03]} 21. Rhc1 {[%emt 0:00:12]} Qb2+ {[%emt 0:00:27]} 22. Qf2 {[%emt 0:00:05]} Qb6 {[%emt 0:00:06]} 23. Rab1 {[%emt 0:00:03]} Qa5 {[%emt 0:00:03]} 24. Qf7 {[%emt 0:00:20]} b6 {[%emt 0:00:20]} 25. Nb5 {[%emt 0:00:04]} a6 {[%emt 0:00:06]} 26. Qg8+ {[%emt 0:00:14]} Be8 {[%emt 0:00:01]} 27. Bg6 {[%emt 0:00:03]} 1-0

[Event "RUS-ch Women Blitz 2019"]
[Site "Sochi"]
[Date "2019.10.17"]
[Round "6.12"]
[White "Bodnaruk, Anastasia"]
[Black "Yakimova, Mariya"]
[Result "1-0"]
[ECO "B33"]
[WhiteElo "2419"]
[BlackElo "2276"]
[Annotator "RC"]
[PlyCount "59"]
[EventDate "2019.10.17"]
[EventType "swiss"]
[EventCountry "RUS"]
[SourceTitle "playchess.com"]
[Source "ChessBase"]
[SourceQuality "1"]
[TimeControl "180+2"]

1. e4 {[%emt 0:00:00]} c5 {[%emt 0:00:00]} 2. Nf3 {[%emt 0:00:00]} Nc6 {[%emt 0:00:00]} 3. d4 {[%emt 0:00:00]} cxd4 {[%emt 0:00:00]} 4. Nxd4 {[%emt 0:00:01]} Nf6 {[%emt 0:00:01]} 5. Nc3 {[%emt 0:00:01]} e5 {[%emt 0:00:02]} 6. Ndb5 {[%emt 0:00:01]} d6 {[%emt 0:00:00]} 7. Bg5 {[%emt 0:00:01]} a6 {[%emt 0:00:02]} 8. Na3 {[%emt 0:00:01]} b5 {[%emt 0:00:01]} 9. Nd5 {[%emt 0:00:01]} Be7 {[%emt 0:00:01]} 10. Bxf6 {[%emt 0:00:01]} Bxf6 {[%emt 0:00:00]} 11. c4 {[%emt 0:00:03]} b4 {[%emt 0:00:01]} 12. Nc2 {[%emt 0:00:01]} a5 {[%emt 0:00:01]} 13. Be2 {[%emt 0:00:08]} O-O {[%emt 0:00:03]} 14. O-O {[%emt 0:00:01]} Bg5 {[%emt 0:00:08]} 15. Qd3 {[%emt 0:00:02]} Kh8 {[%emt 0:00:09]} 16. Bf3 {[%emt 0:00:23]} Be6 {[%emt 0:00:05]} 17. Rad1 {[%emt 0:00:03]} Rb8 {[%emt 0:00:14]} 18. g3 {[%emt 0:00:14]} g6 {[%emt 0:00:05]} 19. Bg2 {[%emt 0:00:03]} Bh6 {[%emt 0:00:06]} 20. f4 {[%emt 0:00:03]} Bg4 {[%emt 0:00:12]} 21. Rd2 {[%emt 0:00:15]} f5 {[%emt 0:00:05]} 22. Nde3 {[%emt 0:00:09]} exf4 {[%emt 0:00:15]} 23. gxf4 {[%emt 0:00:08]} Qb6 {[%emt 0:00:07]} 24. Kh1 {[%emt 0:00:08]} fxe4 {[%emt 0:00:12]} 25. Qxe4 {[%emt 0:00:16]} Bd7 {[%emt 0:00:27]} 26. Rxd6 {[%emt 0:00:03]} Rbe8 {[%emt 0:00:01]} 27. Qd5 {[%emt 0:00:34]} Bxf4 {[%emt 0:00:20]} 28. Rxd7 {[%emt 0:00:16]} Bxe3 {[%emt 0:00:07]} 29. Rff7 {[%emt 0:00:26]} Ne7 {[%emt 0:00:33]} 30. Qe5+ {[%emt 0:00:02]} 1-0

[Event "RUS-ch Women Blitz 2019"]
[Site "Sochi"]
[Date "2019.10.17"]
[Round "7.1"]
[White "Semenova, Elena"]
[Black "Kovanova, Baira"]
[Result "1/2-1/2"]
[ECO "C45"]
[WhiteElo "2282"]
[BlackElo "2344"]
[Annotator "RC"]
[PlyCount "38"]
[EventDate "2019.10.17"]
[EventType "swiss"]
[EventCountry "RUS"]
[SourceTitle "playchess.com"]
[Source "ChessBase"]
[SourceQuality "1"]
[TimeControl "180+2"]

1. e4 {[%emt 0:00:00]} e5 {[%emt 0:00:00]} 2. Nf3 {[%emt 0:00:01]} Nc6 3. d4 exd4 {[%emt 0:00:01]} 4. Nxd4 {[%emt 0:00:01]} Nf6 {[%emt 0:00:08]} 5. Nxc6 {[%emt 0:00:13]} bxc6 {[%emt 0:00:01]} 6. e5 {[%emt 0:00:03]} Qe7 {[%emt 0:00:02]} 7. Qe2 {[%emt 0:00:01]} Nd5 {[%emt 0:00:01]} 8. c4 {[%emt 0:00:00]} Ba6 {[%emt 0:00:06]} 9. b3 {[%emt 0:00:15]} g6 {[%emt 0:00:05]} 10. Bb2 {[%emt 0:00:04]} Bg7 {[%emt 0:00:01]} 11. Nd2 {[%emt 0:00:11]} O-O {[%emt 0:00:20]} 12. O-O-O {[%emt 0:00:03]} d6 {[%emt 0:00:18]} 13. Qf3 {[%emt 0:00:42]} Nb6 {[%emt 0:00:17]} 14. exd6 {[%emt 0:00:09]} Bxb2+ {[%emt 0:00:21]} 15. Kxb2 {[%emt 0:00:01]} cxd6 {[%emt 0:00:02]} 16. Qc3 {[%emt 0:00:21]} Rab8 {[%emt 0:00:04]} 17. Ka1 {[%emt 0:00:13]} d5 {[%emt 0:00:04]} 18. c5 {[%emt 0:00:27]} Bxf1 {[%emt 0:00:10]} 19. Rhxf1 {[%emt 0:00:23]} Nd7 1/2-1/2

[Event "RUS-ch Women Blitz 2019"]
[Site "Sochi"]
[Date "2019.10.17"]
[Round "7.3"]
[White "Belenkaya, Dina"]
[Black "Ambartsumova, Karina"]
[Result "1-0"]
[ECO "B25"]
[WhiteElo "2300"]
[BlackElo "2341"]
[Annotator "RC"]
[PlyCount "107"]
[EventDate "2019.10.17"]
[EventType "swiss"]
[EventCountry "RUS"]
[SourceTitle "playchess.com"]
[Source "ChessBase"]
[SourceQuality "1"]
[TimeControl "180+2"]

1. e4 {[%emt 0:00:00]} c5 {[%emt 0:00:00]} 2. Nc3 {[%emt 0:00:01]} Nc6 {[%emt 0:00:01]} 3. g3 {[%emt 0:00:01]} g6 {[%emt 0:00:02]} 4. Bg2 {[%emt 0:00:02]} Bg7 {[%emt 0:00:01]} 5. d3 {[%emt 0:00:07]} d6 {[%emt 0:00:06]} 6. Nf3 {[%emt 0:00:08]} e6 {[%emt 0:00:07]} 7. Bg5 {[%emt 0:00:05]} Nge7 {[%emt 0:00:05]} 8. Qd2 {[%emt 0:00:04]} Nd4 {[%emt 0:00:11]} 9. O-O {[%emt 0:00:10]} a6 {[%emt 0:00:39]} 10. Nd1 {[%emt 0:00:24]} O-O {[%emt 0:00:29]} 11. c3 {[%emt 0:00:02]} Nxf3+ {[%emt 0:00:02]} 12. Bxf3 {[%emt 0:00:02]} Re8 {[%emt 0:00:15]} 13. Bh6 {[%emt 0:00:04]} Bh8 {[%emt 0:00:01]} 14. Ne3 {[%emt 0:00:03]} b6 {[%emt 0:00:16]} 15. d4 {[%emt 0:00:26]} e5 {[%emt 0:00:11]} 16. dxc5 {[%emt 0:00:24]} dxc5 {[%emt 0:00:01]} 17. Qxd8 {[%emt 0:00:14]} Rxd8 {[%emt 0:00:01]} 18. Nc4 {[%emt 0:00:02]} Rb8 {[%emt 0:00:15]} 19. Rad1 {[%emt 0:00:02]} Rxd1 {[%emt 0:00:07]} 20. Rxd1 {[%emt 0:00:01]} Be6 {[%emt 0:00:01]} 21. Be2 {[%emt 0:00:05]} b5 {[%emt 0:00:19]} 22. Na5 {[%emt 0:00:01]} Bg7 {[%emt 0:00:14]} 23. Be3 {[%emt 0:00:03]} Bxa2 {[%emt 0:00:05]} 24. Bxc5 {[%emt 0:00:02]} Bf8 {[%emt 0:00:01]} 25. b3 {[%emt 0:00:05]} Nc6 {[%emt 0:00:13]} 26. Nxc6 Rc8 27. Bxf8 {[%emt 0:00:07]} Rxc6 {[%emt 0:00:01]} 28. Bh6 {[%emt 0:00:03]} f6 {[%emt 0:00:04]} 29. c4 {[%emt 0:00:13]} Bxb3 {[%emt 0:00:02]} 30. cxb5 {[%emt 0:00:04]} Bxd1 {[%emt 0:00:02]} 31. Bxd1 {[%emt 0:00:10]} axb5 {[%emt 0:00:03]} 32. Bb3+ {[%emt 0:00:05]} Kh8 {[%emt 0:00:00]} 33. Bd5 {[%emt 0:00:03]} Rb6 {[%emt 0:00:05]} 34. Bf8 {[%emt 0:00:02]} b4 {[%emt 0:00:03]} 35. Bb3 {[%emt 0:00:08]} Rb8 {[%emt 0:00:01]} 36. Be7 {[%emt 0:00:04]} Kg7 {[%emt 0:00:01]} 37. Kf1 {[%emt 0:00:01]} Rc8 {[%emt 0:00:03]} 38. Ke2 {[%emt 0:00:03]} Rc7 {[%emt 0:00:03]} 39. Bd6 {[%emt 0:00:03]} Rd7 {[%emt 0:00:01]} 40. Bc5 {[%emt 0:00:03]} Rc7 {[%emt 0:00:01]} 41. Be3 {[%emt 0:00:12]} f5 {[%emt 0:00:02]} 42. exf5 gxf5 {[%emt 0:00:00]} 43. Bd2 {[%emt 0:00:04]} Kf6 {[%emt 0:00:02]} 44. Bg8 {[%emt 0:00:02]} Rb7 {[%emt 0:00:01]} 45. Bb3 {[%emt 0:00:05]} Rb8 {[%emt 0:00:02]} 46. Kd3 {[%emt 0:00:01]} Rd8+ {[%emt 0:00:02]} 47. Kc2 {[%emt 0:00:01]} Rc8+ {[%emt 0:00:01]} 48. Kb2 {[%emt 0:00:01]} Rb8 {[%emt 0:00:00]} 49. h4 {[%emt 0:00:03]} Rb7 {[%emt 0:00:06]} 50. Bg5+ {[%emt 0:00:01]} Kg6 {[%emt 0:00:02]} 51. Bc4 {[%emt 0:00:02]} h6 52. Bd2 {[%emt 0:00:02]} Kh5 {[%emt 0:00:07]} 53. Bd5 {[%emt 0:00:08]} Kg4 {[%emt 0:00:03]} 54. Bxb7 1-0

[Event "RUS-ch Women Blitz 2019"]
[Site "Sochi"]
[Date "2019.10.17"]
[Round "7.4"]
[White "Garifullina, Leya"]
[Black "Styazhkina, Anna"]
[Result "1-0"]
[ECO "C78"]
[WhiteElo "2330"]
[BlackElo "2280"]
[Annotator "RC"]
[PlyCount "105"]
[EventDate "2019.10.17"]
[EventType "swiss"]
[EventCountry "RUS"]
[SourceTitle "playchess.com"]
[Source "ChessBase"]
[SourceQuality "1"]
[TimeControl "180+2"]

1. e4 {[%emt 0:00:00]} e5 {[%emt 0:00:00]} 2. Nf3 {[%emt 0:00:01]} Nc6 {[%emt 0:00:01]} 3. Bb5 {[%emt 0:00:01]} a6 {[%emt 0:00:18]} 4. Ba4 {[%emt 0:00:01]} Nf6 {[%emt 0:00:02]} 5. O-O {[%emt 0:00:03]} Bc5 {[%emt 0:00:01]} 6. c3 {[%emt 0:00:02]} b5 {[%emt 0:00:02]} 7. Bc2 {[%emt 0:00:03]} d5 {[%emt 0:00:05]} 8. exd5 {[%emt 0:00:11]} Qxd5 {[%emt 0:00:01]} 9. Bb3 {[%emt 0:00:12]} Qd3 {[%emt 0:00:02]} 10. Bc2 {[%emt 0:00:02]} Qd6 {[%emt 0:00:02]} 11. d3 {[%emt 0:00:09]} O-O {[%emt 0:00:07]} 12. Nbd2 {[%emt 0:00:02]} Bg4 {[%emt 0:00:05]} 13. Ne4 {[%emt 0:00:10]} Nxe4 {[%emt 0:00:07]} 14. dxe4 {[%emt 0:00:02]} Qf6 {[%emt 0:00:02]} 15. Qe2 {[%emt 0:00:07]} Rad8 {[%emt 0:00:17]} 16. h3 {[%emt 0:00:11]} Bxf3 {[%emt 0:00:06]} 17. Qxf3 {[%emt 0:00:02]} Qxf3 {[%emt 0:00:02]} 18. gxf3 {[%emt 0:00:02]} b4 {[%emt 0:00:26]} 19. Ba4 {[%emt 0:00:02]} Ne7 {[%emt 0:00:02]} 20. cxb4 {[%emt 0:00:04]} Bxb4 {[%emt 0:00:04]} 21. Be3 {[%emt 0:00:02]} f5 {[%emt 0:00:04]} 22. Rac1 {[%emt 0:00:14]} Bd6 {[%emt 0:00:22]} 23. Bg5 {[%emt 0:00:13]} c5 {[%emt 0:00:11]} 24. Bb3+ {[%emt 0:00:08]} Kh8 {[%emt 0:00:01]} 25. Rcd1 {[%emt 0:00:01]} h6 {[%emt 0:00:05]} 26. Rxd6 {[%emt 0:00:14]} hxg5 {[%emt 0:00:05]} 27. Rfd1 {[%emt 0:00:01]} Rxd6 {[%emt 0:00:27]} 28. Rxd6 {[%emt 0:00:01]} fxe4 {[%emt 0:00:02]} 29. fxe4 {[%emt 0:00:01]} Kh7 {[%emt 0:00:02]} 30. Rxa6 {[%emt 0:00:06]} Rd8 {[%emt 0:00:05]} 31. Be6 {[%emt 0:00:10]} Rd2 {[%emt 0:00:14]} 32. b3 {[%emt 0:00:03]} Re2 {[%emt 0:00:06]} 33. Bg4 {[%emt 0:00:04]} Rxe4 {[%emt 0:00:06]} 34. Re6 {[%emt 0:00:01]} Re1+ {[%emt 0:00:02]} 35. Kg2 {[%emt 0:00:01]} Nd5 {[%emt 0:00:03]} 36. Bf5+ {[%emt 0:00:12]} Kg8 {[%emt 0:00:01]} 37. Rc6 {[%emt 0:00:15]} Nf4+ {[%emt 0:00:03]} 38. Kf3 {[%emt 0:00:02]} Rc1 {[%emt 0:00:06]} 39. Kg4 {[%emt 0:00:17]} Kf7 {[%emt 0:00:10]} 40. Be4 {[%emt 0:00:07]} Rg1+ {[%emt 0:00:03]} 41. Kf5 {[%emt 0:00:01]} Re1 {[%emt 0:00:05]} 42. f3 {[%emt 0:00:03]} Nxh3 {[%emt 0:00:02]} 43. Rc7+ {[%emt 0:00:01]} Ke8 {[%emt 0:00:02]} 44. Ke6 {[%emt 0:00:06]} Nf4+ {[%emt 0:00:01]} 45. Kf5 {[%emt 0:00:01]} Kd8 {[%emt 0:00:06]} 46. Rxc5 {[%emt 0:00:03]} Kd7 {[%emt 0:00:03]} 47. Rxe5 {[%emt 0:00:02]} Nh3 {[%emt 0:00:01]} 48. Bc6+ {[%emt 0:00:06]} Kxc6 {[%emt 0:00:01]} 49. Rxe1 {[%emt 0:00:02]} Nf2 {[%emt 0:00:02]} 50. Kxg5 {[%emt 0:00:01]} Nd3 {[%emt 0:00:01]} 51. Re2 {[%emt 0:00:02]} Kd5 {[%emt 0:00:02]} 52. Rd2 {[%emt 0:00:04]} Kd4 {[%emt 0:00:02]} 53. Rxd3+ {[%emt 0:00:01] Kd5} 1-0

[Event "RUS-ch Women Blitz 2019"]
[Site "Sochi"]
[Date "2019.10.17"]
[Round "7.6"]
[White "Goltseva, Ekaterina"]
[Black "Bodnaruk, Anastasia"]
[Result "0-1"]
[ECO "E70"]
[WhiteElo "2317"]
[BlackElo "2419"]
[Annotator "RC"]
[PlyCount "62"]
[EventDate "2019.10.17"]
[EventType "swiss"]
[EventCountry "RUS"]
[SourceTitle "playchess.com"]
[Source "ChessBase"]
[SourceQuality "1"]
[TimeControl "180+2"]

1. d4 {[%emt 0:00:00]} Nf6 {[%emt 0:00:00]} 2. c4 {[%emt 0:00:00]} g6 {[%emt 0:00:00]} 3. Nc3 {[%emt 0:00:01]} Bg7 {[%emt 0:00:00]} 4. e4 {[%emt 0:00:02]} d6 {[%emt 0:00:00]} 5. Nge2 {[%emt 0:00:01]} O-O {[%emt 0:00:05]} 6. Ng3 {[%emt 0:00:01]} e5 {[%emt 0:00:02]} 7. d5 {[%emt 0:00:02]} a5 {[%emt 0:00:04]} 8. Be2 {[%emt 0:00:08]} Na6 {[%emt 0:00:03]} 9. h4 {[%emt 0:00:01]} h5 {[%emt 0:00:07]} 10. Bg5 {[%emt 0:00:03]} Qe8 {[%emt 0:00:08]} 11. Qd2 {[%emt 0:00:18]} Kh7 {[%emt 0:00:23]} 12. f3 {[%emt 0:00:30]} Bd7 {[%emt 0:00:11]} 13. Nf1 {[%emt 0:00:07]} Nc5 {[%emt 0:00:06]} 14. g4 {[%emt 0:00:22]} Rh8 {[%emt 0:00:40]} 15. Ng3 {[%emt 0:00:44]} Kg8 {[%emt 0:00:02]} 16. gxh5 {[%emt 0:00:18]} Nxh5 {[%emt 0:00:02]} 17. Nxh5 {[%emt 0:00:01]} Rxh5 {[%emt 0:00:14]} 18. O-O-O {[%emt 0:00:11]} f6 {[%emt 0:00:45]} 19. Be3 {[%emt 0:00:04]} f5 {[%emt 0:00:00]} 20. f4 {[%emt 0:00:26]} Rh7 {[%emt 0:00:04]} 21. fxe5 {[%emt 0:00:13]} Qxe5 {[%emt 0:00:01]} 22. Bf4 {[%emt 0:00:04]} Qe8 {[%emt 0:00:09]} 23. Bd3 {[%emt 0:00:04]} fxe4 {[%emt 0:00:08]} 24. Bc2 {[%emt 0:00:02]} Bf5 {[%emt 0:00:04]} 25. Be3 {[%emt 0:00:02]} Qe5 {[%emt 0:00:10]} 26. Rdf1 {[%emt 0:00:02]} a4 {[%emt 0:00:06]} 27. a3 {[%emt 0:00:02]} Nb3+ {[%emt 0:00:05]} 28. Bxb3 {[%emt 0:00:02]} axb3 {[%emt 0:00:02]} 29. Rhg1 {[%emt 0:00:03]} Rxh4 {[%emt 0:00:03]} 30. Qg2 {[%emt 0:00:02]} Rxa3 {[%emt 0:00:03]} 31. Bd2 {[%emt 0:00:06]} Ra1+ {[%emt 0:00:02]} 0-1